Workbook

Sheet Sheet1
A1: PRISM
A2: Chlorophyll a data
B3: K | D3: r
A4: low (L) | B4: 16.339
A5: med (M) | B5: 9.93 | D5: 2.057469742
A6: high (H) | B6: 25.811 | D6: 2.132923338
A8: Station | B8: Depth (m) | C8: Filter # | D8: Vol Filt. (mL) | E8: Vol Extr. (mL) | F8: Scale | G8: Dilution | H8: F0 | I8: Fa | J8: F0/Fa | K8: Chl a (ug/L) | L8: Pheo a (ug/L) | M8: Notes
A9: 1 | B9: 1 | C9: 101 | D9: 294.25 | E9: 5 | F9: H | G9: 1 | H9: 4.61 | I9: 2.36 | J9: =H9/I9 -> 1.953389831 | K9: =IF(F9="L",($B$4*(H9-I9)*E9)/(D9*G9),IF(F9="M",($B$5*(H9-I9)*E9)/(D9*G9),IF(F9="H",($B$6*(H9-I9)*E9)/(D9*G9)))) -> 0.986826678 | L9: =IF(F9="L",($B$4*($D$4*I9-H9)*E9)/(D9*G9),IF(F9="M",($B$5*($D$5*I9-H9)*E9)/(D9*G9),IF(F9="H",($B$6*($D$6*I9-H9)*E9)/(D9*G9)))) -> 0.1858300239
A10: 1 | B10: 10 | C10: 102 | D10: 294.25 | E10: 5 | F10: H | G10: 1 | H10: 4.71 | I10: 2.44 | J10: =H10/I10 -> 1.930327869 | K10: 0.9955984707 | L10: =IF(F10="L",($B$4*($D$4*(I10-H10))*E10)/(D10*G10),IF(F10="M",($B$5*($D$5*I10-H10)*E10)/(D10*G10),IF(F10="H",($B$6*($D$6*I10-H10)*E10)/(D10*G10)))) -> 0.2168093058
A11: 1 | B11: 20 | C11: 103 | D11: 294.25 | E11: 5 | F11: H | G11: 1 | H11: 4.59 | I11: 2.35 | J11: 1.953191489 | K11: 0.9824407816 | L11: 0.1852470359
A12: 1 | B12: 40 | C12: 104 | D12: 294.25 | E12: 5 | F12: H | G12: 1 | H12: 5.68 | I12: 2.92 | J12: 1.945205479 | K12: 1.210507392 | L12: 0.2404068327
A13: 1 | B13: 50 | C13: 105 | D13: 294.25 | E13: 5 | F13: H | G13: 1 | H13: 5.05 | I13: 2.65 | J13: 1.905660377 | K13: 1.052615123 | L13: 0.2641392243
A14: 1 | B14: 60 | C14: 106 | D14: 294.25 | E14: 5 | F14: H | G14: 1 | H14: 3.61 | I14: 2.09 | J14: 1.727272727 | K14: 0.6666562447 | L14: 0.3718405803
A15: INC 1 >5 | B15: 1 | C15: 107 | D15: 28 | E15: 5 | F15: M | G15: 1 | H15: 0.574 | I15: 0.305 | J15: 1.881967213 | K15: 0.4769946429 | L15: 0.09491709544
A16: I1 | B16: 1 | C16: 108 | D16: 200 | E16: 5 | F16: H | G16: 1 | H16: 3.2 | I16: 1.6 | J16: 2 | K16: 1.03244 | L16: 0.1372353713
A17: I2 > 5 | B17: 1 | C17: 109 | D17: 200 | E17: 5 | F17: H | G17: 1 | H17: 3.28 | I17: 1.67 | J17: 1.964071856 | K17: 1.03889275 | L17: 0.1819559188
A18: I3 | B18: 1 | C18: 110 | D18: 200 | E18: 5 | F18: H | G18: 1 | H18: 3.23 | I18: 1.64 | J18: 1.969512195 | K18: 1.02598725 | L18: 0.1729300056
A19: 001 > 5 | B19: 1 | C19: 111 | D19: 40 | E19: 5 | F19: H | G19: 1 | H19: 1.46 | I19: =H19/J19 -> 0.7429999998 | J19: 1.96500673 | K19: 2.313310876 | L19: 0.4025291263
A20: 001 > 5 | B20: 50 | C20: 112 | D20: 38 | E20: 5 | F20: H | G20: 1 | H20: 1.67 | I20: 0.861 | J20: 1.93960511 | K20: 2.747513026 | L20: 0.5652846536
A21: IncEx 2 | B21: ------ | C21: 113 | D21: 250 | E21: 5 | F21: H | G21: 1 | H21: 1.58 | I21: =H21/J21 -> 0.839 | J21: 1.883194279 | K21: 0.38251902 | L21: 0.1081597983
A22: 2 | B22: 1 | C22: 114 | D22: 294.5 | E22: 5 | F22: H | G22: 1 | H22: 1.7 | I22: 0.895 | J22: 1.899441341 | K22: 0.3527649406 | L22: 0.09157268986
A23: 2 | B23: 10 | C23: 115 | D23: 294.5 | E23: 5 | F23: H | G23: 1 | H23: 1.6 | I23: =H23/J23 -> 0.85 | J23: 1.882352941 | K23: 0.3286629881 | L23: 0.09333364414
A24: 2 | B24: 20 | C24: 116 | D24: 294.5 | E24: 5 | F24: H | G24: 1 | H24: 1.49 | I24: =H24/J24 -> 0.769 | J24: 1.937581274 | K24: 0.3159546859 | L24: 0.06582814963
A25: 2 | B25: 40 | C25: 117 | D25: 294.5 | E25: 5 | F25: H | G25: 1 | H25: 1.65 | I25: 0.885 | J25: 1.86440678 | K25: 0.3352362479 | L25: 0.1041367163
A26: 2 | B26: 60 | C26: 118 | D26: 294.5 | E26: 5 | F26: H | G26: 1 | H26: 2.19 | I26: 1.2 | J26: 1.825 | K26: 0.4338351443 | L26: 0.1619248071
A27: 2 | B27: 80 | C27: 119 | D27: 294.5 | E27: 5 | F27: H | G27: 1 | H27: 3.08 | I27: 1.72 | J27: 1.790697674 | K27: 0.5959755518 | L27: 0.2579470453
A28: In2 < 5 | B28: ------ | C28: 120 | D28: 55 | E28: 5 | F28: M | G28: 1 | H28: 0.214 | I28: 0.115 | J28: 1.860869565 | K28: 0.08937 | L28: 0.02040977927
A29: In2 > 5 | B29: ------ | C29: 121 | D29: 30 | E29: 5 | F29: M | G29: 1 | H29: 0.095 | I29: =H29/J29 -> 0.053 | J29: 1.79245283 | K29: 0.06951 | L29: 0.02324595843
A30: CTDFmax > 5 | B30: ------ | C30: 122 | D30: 35 | E30: 5 | F30: M | G30: 1 | H30: 0.063 | I30: 0.042 | J30: 1.5 | K30: 0.02979 | L30: 0.03321404724
A31: CTDFmax < 5 | B31: ------ | C31: 123 | D31: 55 | E31: 5 | F31: M | G31: 1 | H31: 0.307 | I31: 0.18 | J31: 1.705555556 | K31: 0.1146463636 | L31: 0.0571828561
A32: CTDSUR > 5 | B32: ------ | C32: 124 | D32: 30 | E32: 5 | F32: M | G32: 1 | H32: 0.092 | I32: 0.054 | J32: 1.703703704 | K32: 0.06289 | L32: 0.03161607085
A33: CTDSUR < 5 | B33: ------ | C33: 125 | D33: 60 | E33: 5 | F33: M | G33: 1 | H33: 0.197 | I33: 0.104 | J33: 1.894230769 | K33: 0.0769575 | L33: 0.01404834601
A34: IN1 C1 | B34: ------ | C34: 126 | D34: 200 | E34: 5 | F34: H | G34: 1 | H34: 3.42 | I34: 1.69 | J34: 2.023668639 | K34: 1.11632575 | L34: 0.1191438609
A35: IN1 Fe1 | B35: ------ | C35: 127 | D35: 200 | E35: 5 | F35: H | G35: 1 | H35: 3.35 | I35: 1.67 | J35: 2.005988024 | K35: 1.084062 | L35: 0.1367866688
A36: IN1 C2 | B36: ------ | C36: 128 | D36: 200 | E36: 5 | F36: H | G36: 1 | H36: 3.41 | I36: 1.7 | J36: 2.005882353 | K36: 1.10342025 | L36: 0.139359832
A37: IN1 Fe2 | B37: ------ | C37: 129 | D37: 200 | E37: 5 | F37: H | G37: 1 | H37: 3.36 | I37: 1.67 | J37: 2.011976048 | K37: 1.09051475 | L37: 0.1303339188
A38: INC Ex 24.3 | B38: ------ | C38: 130 | D38: 250 | E38: 5 | F38: H | G38: 1 | H38: 4.04 | I38: 2.08 | J38: 1.942307692 | K38: 1.0117912 | L38: 0.2046711861
A39: INC < 5 | B39: ------ | C39: 131 | D39: 55 | E39: 5 | F39: M | G39: 1 | H39: 0.565 | I39: 0.296 | J39: 1.908783784 | K39: 0.2428336364 | L39: 0.03972996942
A40: INC > 5 | B40: ------ | C40: 132 | D40: 20 | E40: 5 | F40: M | G40: 1 | H40: 0.127 | I40: 0.066 | J40: 1.924242424 | K40: 0.1514325 | L40: 0.0218286299
A41: 3 | B41: 1 | C41: 133 | D41: 294.25 | E41: 5 | F41: H | G41: 1 | H41: 4.53 | I41: 2.34 | J41: 1.935897436 | K41: 0.9605112999 | L41: 0.2022076333
A42: 3 | B42: 10 | C42: 134 | D42: 294.25 | E42: 5 | F42: H | G42: 1 | H42: 4.82 | I42: 2.36 | J42: 2.042372881 | K42: 1.078930501 | L42: 0.09372620061
A43: 3 | B43: 20 | C43: 135 | D43: 294.25 | E43: 5 | F43: H | G43: 1 | H43: 4.62 | I43: 2.39 | J43: 1.933054393 | K43: 0.9780548853 | L43: 0.2095084696
A44: 3 | B44: 30 | C44: 136 | D44: 294.25 | E44: 5 | F44: H | G44: 1 | H44: 5.03 | I44: 2.66 | J44: 1.890977444 | K44: 1.039457434 | L44: 0.2822657976
A45: 3 | B45: 40 | C45: 137 | D45: 294.25 | E45: 5 | F45: H | G45: 1 | H45: 6.04 | I45: 3.39 | J45: 1.781710914 | K45: 1.162262532 | L45: 0.522189256
A46: 3 | B46: 50 | C46: 138 | D46: 294.25 | E46: 5 | F46: H | G46: 1 | H46: 7.19 | I46: 4.04 | J46: 1.77970297 | K46: 1.381557349 | L46: 0.6258719201
A47: 3 | B47: 60 | C47: 139 | D47: 294.25 | E47: 5 | F47: H | G47: 1 | H47: 4.36 | I47: 2.51 | J47: 1.737051793 | K47: 0.8113908241 | L47: 0.4357991427
A48: 3 | B48: 70 | C48: 140 | D48: 294.25 | E48: 5 | F48: H | G48: 1 | H48: 2.03 | I48: 1.17 | J48: 1.735042735 | K48: 0.3771870858 | L48: 0.2041723808
A49: 3 | B49: 80 | C49: 141 | D49: 294.25 | E49: 5 | F49: H | G49: 1 | H49: 1.21 | I49: 0.704 | J49: 1.71875 | K49: 0.2219263551 | L49: 0.1278831017
A50: 3 | B50: 100 | C50: 142 | D50: 294.25 | E50: 5 | F50: H | G50: 1 | H50: 1.09 | I50: 0.654 | J50: 1.666666667 | K50: 0.1912250807 | L50: 0.1337399545
A51: 3 | B51: 150 | C51: 143 | D51: 294.25 | E51: 5 | F51: H | G51: 1 | H51: 0.465 | I51: =H51/J51 -> 0.315 | J51: 1.476190476 | K51: 0.0657884452 | L51: 0.0907314112
A52: 3 | B52: 200 | C52: 144 | D52: 294.25 | E52: 5 | F52: M | G52: 1 | H52: 0.504 | I52: 0.336 | J52: =H52/I52 -> 1.5 | K52: 0.0283473237 | L52: 0.03160555047
A53: CTD FRRF SUR < 5 | B53: ------ | C53: 145 | D53: 60 | E53: 5 | F53: M | G53: 1 | H53: 0.645 | I53: 0.376 | J53: =H53/I53 -> 1.715425532 | K53: 0.2225975 | L53: 0.1064236356
A54: CTD FRRF SUR > 5 | B54: ------ | C54: 146 | D54: 30 | E54: 5 | F54: M | G54: 1 | H54: 0.254 | I54: 0.132 | J54: 1.924242424 | K54: 0.20191 | L54: 0.02910483986
A55: CTD Fmax < 5 | B55: ------ | C55: 147 | D55: 60 | E55: 5 | F55: M | G55: 1 | H55: 0.716 | I55: 0.383 | J55: 1.869451697 | K55: 0.2755575 | L55: 0.05958902904
A56: CTD Fmax > 5 | B56: ------ | C56: 148 | D56: 25 | E56: 5 | F56: M | G56: 1 | H56: 0.241 | I56: 0.127 | J56: 1.897637795 | K56: 0.226404 | L56: 0.0403131333
A57: INC 2 24 | B57: ------ | C57: 149 | D57: 200 | E57: 5 | F57: H | G57: 1 | H57: 1.35 | I57: 0.726 | J57: 1.859504132 | K57: 0.4026516 | L57: 0.1280885997
A58: INC 2 24 | B58: ------ | C58: 150 | D58: 200 | E58: 5 | F58: H | G58: 1 | H58: 1.32 | I58: 0.723 | J58: 1.825726141 | K58: 0.385229175 | L58: 0.1433178834
A59: INC 2 24 | B59: ------ | C59: 151 | D59: 200 | E59: 5 | F59: H | G59: 1 | H59: 1.34 | I59: 0.709 | J59: 1.889985896 | K59: 0.407168525 | L59: 0.1111438739
A60: INC 2 24 | B60: ------ | C60: 152 | D60: 200 | E60: 5 | F60: H | G60: 1 | H60: 1.49 | I60: 0.778 | J60: 1.915167095 | K60: 0.4594358 | L60: 0.1093188493
A61: INC 2 24 | B61: ------ | C61: 153 | D61: 200 | E61: 5 | F61: H | G61: 1 | H61: 1.52 | I61: =H61/J61 -> 0.798 | J61: 1.904761905 | K61: 0.46588855 | L61: 0.1174870414
A62: INC 2 24 | B62: ------ | C62: 154 | D62: 200 | E62: 5 | F62: H | G62: 1 | H62: 1.16 | I62: 0.677 | J62: =H62/I62 -> 1.713441654 | K62: 0.311667825 | L62: 0.1832510665
A63: INC 2 24 | B63: ------ | C63: 155 | D63: 200 | E63: 5 | F63: H | G63: 1 | H63: 1.31 | I63: 0.693 | J63: 1.89033189 | K63: 0.398134675 | L63: 0.1084809702
A64: INC 2 24 | B64: ------ | C64: 156 | D64: 200 | E64: 5 | F64: H | G64: 1 | H64: 1.45 | I64: 0.764 | J64: 1.897905759 | K64: 0.44265865 | L64: 0.1158613398
A65: INC 2 24 | B65: ------ | C65: 157 | D65: 200 | E65: 5 | F65: H | G65: 1 | H65: 1.6 | I65: 0.84 | J65: 1.904761905 | K65: 0.490409 | L65: 0.1236705699
A66: AFM Dil. 1 T0 | B66: ------ | C66: 158 | D66: 287 | E66: 5 | F66: M | G66: 1 | H66: 0.923 | I66: 0.488 | J66: 1.891393443 | K66: 0.07525348432 | L66: 0.01402054312
A67: AFM Dil. 1 T0 | B67: ------ | C67: 159 | D67: 287 | E67: 5 | F67: H | G67: 1 | H67: 4.48 | I67: 2.3 | J67: 1.947826087 | K67: 0.9802783972 | L67: 0.191434736
A68: AFM Dil. 1 T0 | B68: ------ | C68: 160 | D68: 287 | E68: 5 | F68: H | G68: 1 | H68: 4.46 | I68: 2.29 | J68: 1.947598253 | K68: 0.9757817073 | L68: 0.190837021
A69: AFM Dil. 1 T0 | B69: ------ | C69: 161 | D69: 287 | E69: 5 | F69: H | G69: 1 | H69: 4.42 | I69: 2.32 | J69: 1.905172414 | K69: 0.944304878 | L69: 0.2375970651
A70: AFM Dil. 1 T0 | B70: ------ | C70: 162 | D70: 287 | E70: 5 | F70: M | G70: 1 | H70: 0.926 | I70: 0.477 | J70: 2.904761905 | K70: 0.07767543554 | L70: 0.009586267512
A71: AFM Dil. 1 T0 | B71: ------ | C71: 163 | D71: 287 | E71: 5 | F71: M | G71: 1 | H71: 0.804 | I71: 0.421 | J71: =H71/I71 -> 1.909738717 | K71: =IF(F71="L",($B$4*(H71-I71)*E71)/(D71*G71),IF(F71="M",($B$5*(H71-I71)*E71)/(D71*G71),IF(F71="H",($B$6*(H71-I71)*E71)/(D71*G71)))) -> 0.06625766551 | L71: 0.01075947702
A72: 003 (ZOOP 500) | B72: Z101 | C72: 164 | D72: 25 | E72: 5 | F72: M | G72: =0.1/10.1 -> 0.009900990099 | H72: 0.569 | I72: 0.294 | J72: =H72/I72 -> 1.93537415 | K72: 55.16115 | L72: 7.200255953
A73: 003 (ZOOP 200) | B73: Z102 | C73: 165 | D73: 10 | E73: 5 | F73: M | G73: =0.1/10.1 -> 0.009900990099 | H73: 0.5 | I73: 0.259 | J73: =H73/I73 -> 1.930501931 | K73: =IF(F73="L",($B$4*(H73-I73)*E73)/(D73*G73),IF(F73="M",($B$5*(H73-I73)*E73)/(D73*G73),IF(F73="H",($B$6*(H73-I73)*E73)/(D73*G73)))) -> 120.853065 | L73: =IF(F73="L",($B$4*($D$4*(I73-H73))*E73)/(D73*G73),IF(F73="M",($B$5*($D$5*I73-H73)*E73)/(D73*G73),IF(F73="H",($B$6*($D$6*I73-H73)*E73)/(D73*G73)))) -> 16.49050764
A74: INC 1 48 | B74: ------ | C74: 166 | D74: 200 | E74: 5 | F74: H | G74: 1 | H74: 4.57 | I74: 2.26 | J74: =H74/I74 -> 2.022123894 | K74: =IF(F74="L",($B$4*(H74-I74)*E74)/(D74*G74),IF(F74="M",($B$5*(H74-I74)*E74)/(D74*G74),IF(F74="H",($B$6*(H74-I74)*E74)/(D74*G74)))) -> 1.49058525 | L74: 0.1615812119
A75: INC 1 48 | B75: ------ | C75: 167 | D75: 200 | E75: 5 | F75: H | G75: 1 | H75: 4.76 | I75: 2.34 | J75: 2.034188034 | K75: =IF(F75="L",($B$4*(H75-I75)*E75)/(D75*G75),IF(F75="M",($B$5*(H75-I75)*E75)/(D75*G75),IF(F75="H",($B$6*(H75-I75)*E75)/(D75*G75)))) -> 1.5615655 | L75: 0.1490847305
A76: INC 1 48 | B76: ------ | C76: 168 | D76: 200 | E76: 5 | F76: H | G76: 1 | H76: 4.29 | I76: 2.11 | J76: 2.033175355 | K76: 1.4066995 | L76: 0.1358098959
A77: INC 1 48 | B77: ------ | C77: 169 | D77: 200 | E77: 5 | F77: H | G77: 1 | H77: 4.67 | I77: 2.31 | J77: 2.021645022 | K77: 1.522849 | L77: 0.1658698173
A78: INC 1 48 | B78: ------ | C78: 170 | D78: 200 | E78: 5 | F78: H | G78: 1 | H78: 4.99 | I78: 2.49 | J78: 2.004016064 | K78: 1.6131875 | L78: 0.2071197966
A79: INC 4 T0 | B79: ------ | C79: 171 | D79: 200 | E79: 5 | F79: H | G79: =0.25/5.25 -> 0.04761904762 | H79: 1.76 | I79: 0.888 | J79: 1.981981982 | K79: 11.8162758 | L79: 1.816290652
A80: INC 4 T0 | B80: ------ | C80: 172 | D80: 200 | E80: 5 | F80: H | G80: =0.25/5.25 -> 0.04761904762 | H80: 2.18 | I80: 1.09 | J80: 2 | K80: 14.77034475 | L80: 1.96332353
A81: INC 4 T0 | B81: ------ | C81: 173 | D81: 200 | E81: 5 | F81: H | G81: =0.25/5.25 -> 0.04761904762 | H81: 1.65 | I81: 0.841 | J81: 1.961950059 | K81: 10.96257698 | L81: 1.948445983
A82: INC 4 T0 | B82: ------ | C82: 174 | D82: 55 | E82: 5 | F82: H | G82: 1 | H82: 1.71 | I82: 0.955 | J82: 1.790575916 | K82: 1.771573182 | L82: 0.7671540445
A83: INC 4 T0 | B83: ------ | C83: 175 | D83: 21 | E83: 5 | F83: H | G83: 1 | H83: 0.999 | I83: 0.517 | J83: 1.932301741 | K83: 2.962119524 | L83: 0.6374171843
A84: 4 | B84: 1 | C84: 176 | D84: 294.25 | E84: 5 | F84: H | G84: =0.25/5.25 -> 0.04761904762 | H84: 2.06 | I84: 0.949 | J84: 2.170706006 | K84: 10.23273477 | L84: =IF(F84="L",($B$4*($D$4*(I84-H84))*E84)/(D84*G84),IF(F84="M",($B$5*($D$5*I84-H84)*E84)/(D84*G84),IF(F84="H",($B$6*($D$6*I84-H84)*E84)/(D84*G84)))) -> -0.330245185
A85: 4 | B85: 10 | C85: 177 | D85: 294.25 | E85: 5 | F85: H | G85: 0.04761904762 | H85: 1.99 | I85: 0.964 | J85: 2.064315353 | K85: 9.449852268 | L85: 0.6091571692
A86: 4 | B86: 20 | C86: 178 | D86: 294.25 | E86: 5 | F86: H | G86: 0.04761904762 | H86: 1.87 | I86: 0.981 | J86: 1.906218145 | K86: 8.18802989 | L86: 2.048368719
A87: 4 | B87: 25 | C87: 179 | D87: 294.25 | E87: 5 | F87: H | G87: 0.04761904762 | H87: 2.01 | I87: 1.05 | J87: 1.914285714 | K87: 8.841967035 | L87: 2.114422913
A88: 4 | B88: 30 | C88: 180 | D88: 294.25 | E88: 5 | F88: H | G88: 0.04761904762 | H88: 1.95 | I88: 1.04 | J88: 1.875 | K88: 8.381447918 | L88: 2.470595458
A89: 4 | B89: 40 | C89: 181 | D89: 294.25 | E89: 5 | F89: H | G89: 0.04761904762 | H89: 2.08 | I89: 1.15 | J89: 1.808695652 | K89: 8.565655565 | L89: 3.434200092
A90: 4 | B90: 50 | C90: 182 | D90: 294.25 | E90: 5 | F90: H | G90: 0.04761904762 | H90: 1.62 | I90: 0.899 | J90: 1.802002225 | K90: 6.640685658 | L90: 2.740071068
A91: 4 | B91: 60 | C91: 183 | D91: 294.25 | E91: 5 | F91: H | G91: 0.04761904762 | H91: 1.2 | I91: 0.665 | J91: 1.804511278 | K91: 4.927554545 | L91: 2.011492421
A92: 4 | B92: 70 | C92: 184 | D92: 294.25 | E92: 5 | F92: H | G92: 0.04761904762 | H92: 0.508 | I92: 0.308 | J92: 1.649350649 | K92: 1.842076466 | L92: 1.371797919
A93: 4 | B93: 80 | C93: 185 | D93: 294.25 | E93: 5 | F93: H | G93: 0.04761904762 | H93: 0.474 | I93: 0.31 | J93: 1.529032258 | K93: 1.510502702 | L93: 1.724240997
A94: 4 | B94: 100 | C94: 186 | D94: 294.25 | E94: 5 | F94: H | G94: 0.04761904762 | H94: 0.273 | I94: 0.188 | J94: 1.45212766 | K94: 0.7828824979 | L94: 1.178833036
A95: 4 | B95: 150 | C95: 187 | D95: 294.25 | E95: 5 | F95: H | G95: 1 | H95: 1.6 | I95: 1.02 | J95: 1.568627451 | K95: 0.2543819881 | L95: 0.2524442136
A96: 4 | B96: 200 | C96: 188 | D96: 294.25 | E96: 5 | F96: H | G96: 1 | H96: 0.803 | I96: 0.496 | J96: =H96/I96 -> 1.618951613 | K96: 0.1346470178 | L96: 0.1118096449
A97: BBI I1 | B97: ------ | C97: 189 | D97: 200 | E97: 5 | F97: H | G97: =0.25/5.25 -> 0.04761904762 | H97: 1.98 | I97: 0.93 | J97: 2.129032258 | K97: 14.22831375 | L97: 0.04903625079
A98: BBI I2 | B98: ------ | C98: 190 | D98: 200 | E98: 5 | F98: H | G98: =0.25/5.25 -> 0.04761904762 | H98: 1.06 | I98: 0.531 | J98: 1.996233522 | K98: 7.168359975 | L98: 0.9835463158
A99: BBI I3 | B99: ------ | C99: 191 | D99: 200 | E99: 5 | F99: H | G99: =0.25/5.25 -> 0.04761904762 | H99: 1.32 | I99: 0.669 | J99: 1.97309417 | K99: 8.821554525 | L99: 1.448926282
A100: BBI 25 | B100: ------ | C100: 192 | D100: 50 | E100: 5 | F100: H | G100: 1 | H100: 1.09 | I100: 0.62 | J100: 1.758064516 | K100: 1.213117 | L100: 0.5998798255
A101: BBI 75 | B101: ------ | C101: 193 | D101: 28 | E101: 5 | F101: H | G101: 1 | H101: 5.04 | I101: 2.77 | J101: 1.819494585 | K101: 10.46267321 | L101: 4.001615975
A102: I24.3 Fe 1 | B102: ------ | C102: 194 | D102: 200 | E102: 5 | F102: H | G102: 1 | H102: 4.27 | I102: 2.22 | J102: 1.923423423 | K102: 1.32281375 | L102: 0.3001108277
A103: I24.3 Fe 2 | B103: ------ | C103: 195 | D103: 200 | E103: 5 | F103: H | G103: 1 | H103: 2.51 | I103: 1.31 | J103: 1.916030534 | K103: 0.77433 | L103: 0.1833417102
A104: I24.3 Fe 3 | B104: ------ | C104: 196 | D104: 200 | E104: 5 | F104: H | G104: 1 | H104: 3.01 | I104: 1.59 | J104: 1.893081761 | K104: 0.9162905 | L104: 0.2460744002
A105: I24.3 Fe 4 | B105: ------ | C105: 197 | D105: 200 | E105: 5 | F105: H | G105: 1 | H105: 2.85 | I105: 1.5 | J105: 1.9 | K105: 0.87112125 | L105: 0.2254494106
A106: I24.3 Fe 5 | B106: ------ | C106: 198 | D106: 200 | E106: 5 | F106: H | G106: 1 | H106: 2.45 | I106: 1.32 | J106: 1.856060606 | K106: 0.72916075 | L106: 0.2358214313
A107: I24.3 Fe 6 | B107: ------ | C107: 199 | D107: 200 | E107: 5 | F107: H | G107: 1 | H107: 2.25 | I107: 1.19 | J107: 1.890756303 | K107: 0.6839915 | L107: 0.1859545574
A108: I24.3 C1 | B108: ------ | C108: 200 | D108: 200 | E108: 5 | F108: H | G108: 1 | H108: 2.97 | I108: 1.56 | J108: 1.903846154 | K108: 0.90983775 | L108: 0.230595737
A109: I24.3 C2 | B109: ------ | C109: 201 | D109: 200 | E109: 5 | F109: H | G109: 1 | H109: 3.4 | I109: 1.77 | J109: 1.920903955 | K109: 1.05179825 | L109: 0.2421551295
A110: I24.3 C3 | B110: ------ | C110: 202 | D110: 200 | E110: 5 | F110: H | G110: 1 | H110: 3.41 | I110: 1.79 | J110: 1.905027933 | K110: 1.0453455 | L110: 0.2632288216
A111: 004 (ZOOP) | B111: ------ | C111: 203 | D111: 250 | E111: 5 | F111: H | G111: =0.25/5.25 -> 0.04761904762 | H111: 2.34 | I111: 1.22 | J111: 1.918032787 | K111: 12.1414944 | L111: 2.842047106
A112: AFM Dil. 2 T0 | B112: ------ | C112: 204 | D112: 287 | E112: 5 | F112: H | G112: 1 | H112: 7.81 | I112: 4.07 | J112: =H112/I112 -> 1.918918919 | K112: 1.681762021 | L112: 0.3916607845
A113: AFM Dil. 2 T0 | B113: ------ | C113: 205 | D113: 287 | E113: 5 | F113: H | G113: 1 | H113: 7.52 | I113: 4 | J113: 1.88 | K113: 1.582834843 | L113: 0.4549271277
A114: AFM Dil. 2 T0 | B114: ------ | C114: 206 | D114: 287 | E114: 5 | F114: H | G114: 1 | H114: 7.72 | I114: 4 | J114: 1.93 | K114: 1.672768641 | L114: 0.3649933298
A115: AFM Dil. 2 T0 | B115: ------ | C115: 207 | D115: 287 | E115: 5 | F115: H | G115: =0.25/5.25 -> 0.04761904762 | H115: 1.56 | I115: 0.815 | J115: 1.914110429 | K115: 7.035071341 | L115: 1.684002691
A116: AFM Dil. 2 T0 | B116: ------ | C116: 208 | D116: 287 | E116: 5 | F116: H | G116: 0.04761904762 | H116: 1.51 | I116: 0.784 | J116: 1.926020408 | K116: 6.855653415 | L116: 1.531774858
A117: AFM Dil. 2 T0 | B117: ------ | C117: 209 | D117: 287 | E117: 5 | F117: H | G117: 0.04761904762 | H117: 1.58 | I117: 0.827 | J117: 1.910519952 | K117: 7.110615732 | L117: 1.736837305
A118: 5 | B118: 1 | C118: 210 | D118: 294.35 | E118: 5 | F118: H | G118: 0.04761904762 | H118: 0.902 | I118: 0.47 | J118: 1.919148936 | K118: 3.977533413 | L118: 0.9250892792
A119: 5 | B119: 10 | C119: 211 | D119: 294.35 | E119: 5 | F119: H | G119: 0.04761904762 | H119: 0.81 | I119: 0.473 | J119: 1.712473573 | K119: 3.102844352 | L119: 1.831071676
A120: 5 | B120: 20 | C120: 212 | D120: 294.35 | E120: 5 | F120: H | G120: 0.04761904762 | H120: 0.73 | I120: 0.376 | J120: 1.941489362 | K120: 3.259367658 | L120: 0.6627304959
A121: 5 | B121: 30 | C121: 213 | D121: 294.35 | E121: 5 | F121: H | G121: 0.04761904762 | H121: 0.719 | I121: 0.321 | J121: =H121/I121 -> 2.239875389 | K121: 3.664486801 | L121: -0.3160998141
A122: 5 | B122: 40 | C122: 214 | D122: 294.35 | E122: 5 | F122: H | G122: 1 | H122: 8.28 | I122: 4.64 | J122: 1.784482759 | K122: 1.5959239 | L122: 0.7088551566
A123: 5 | B123: 50 | C123: 215 | D123: 294.35 | E123: 5 | F123: H | G123: 1 | H123: 3.84 | I123: 2.25 | J123: 1.706666667 | K123: 0.6971206047 | L123: 0.4204985499
A124: 5 | B124: 60 | C124: 216 | D124: 294.35 | E124: 5 | F124: H | G124: 1 | H124: 3.14 | I124: 1.78 | J124: 1.764044944 | K124: 0.5962792594 | L124: 0.2878816719
A125: 5 | B125: 70 | C125: 217 | D125: 294.35 | E125: 5 | F125: H | G125: 1 | H125: 1.66 | I125: 0.983 | J125: =H125/I125 -> 1.688708037 | K125: 0.2968243078 | L125: 0.1914510829
A126: 5 | B126: 80 | C126: 218 | D126: 294.35 | E126: 5 | F126: H | G126: 1 | H126: 2.87 | I126: 1.79 | J126: =H126/I126 -> 1.603351955 | K126: 0.4735158825 | L126: 0.415612245
A127: 5 | B127: 100 | C127: 219 | D127: 294.35 | E127: 5 | F127: H | G127: 1 | H127: 3.16 | I127: 1.99 | J127: =H127/I127 -> 1.587939698 | K127: 0.5129755393 | L127: 0.475496513
A128: 5 | B128: 150 | C128: 220 | D128: 294.35 | E128: 5 | F128: H | G128: 1 | H128: 1.62 | I128: 1.04 | J128: =H128/I128 -> 1.557692308 | K128: 0.2542955665 | L128: 0.2622928428
A129: 5 | B129: 200 | C129: 221 | D129: 294.35 | E129: 5 | F129: H | G129: 1 | H129: 1.13 | I129: 0.707 | J129: =H129/I129 -> 1.598302687 | K129: 0.1854603873 | L129: 0.1657203871
A130: I24.4 Fe 1 | B130: ------ | C130: 222 | D130: 200 | E130: 5 | F130: H | G130: =0.25/5.25 -> 0.04761904762 | H130: 1.14 | I130: 0.587 | J130: =H130/I130 -> 1.942078365 | K130: 7.493578575 | L130: 1.518039114
A131: I24.4 Fe | B131: ------ | C131: 223 | D131: 200 | E131: 5 | F131: H | G131: 0.04761904762 | H131: 1.3 | I131: 0.657 | J131: 1.97869102 | K131: 8.713148325 | L131: 1.373108611
A132: I24.4 Fe 3 | B132: ------ | C132: 224 | D132: 200 | E132: 5 | F132: H | G132: 0.04761904762 | H132: 1.24 | I132: 0.625 | J132: 1.984 | K132: 8.333726625 | L132: 1.261266655
A133: I24.4 Con 1 | B133: ------ | C133: 225 | D133: 200 | E133: 5 | F133: H | G133: 0.04761904762 | H133: 1.26 | I133: 0.642 | J133: 1.962616822 | K133: 8.37437895 | L133: 1.481598147
A134: I24.4 Con 2 | B134: ------ | C134: 226 | D134: 200 | E134: 5 | F134: H | G134: 0.04761904762 | H134: 0.969 | I134: 0.5 | J134: 1.938 | K134: 6.355313475 | L134: 1.320681149
A135: I24.4 Con 3 | B135: ------ | C135: 227 | D135: 200 | E135: 5 | F135: H | G135: 0.04761904762 | H135: 0.735 | I135: 0.372 | J135: 1.975806452 | K135: 4.918931325 | L135: 0.7920086753
A136: I24.2 Fe 1 | B136: ------ | C136: 228 | D136: 200 | E136: 5 | F136: H | G136: 1 | H136: 1.49 | I136: 0.795 | J136: 1.874213836 | K136: 0.448466125 | L136: 0.1327163251
A137: I24.2 Fe 2 | B137: ------ | C137: 229 | D137: 200 | E137: 5 | F137: H | G137: 1 | H137: 1.65 | I137: 0.866 | J137: 1.905311778 | K137: 0.5058956 | L137: =IF(F137="L",($B$4*($D$4*(I137-H137))*E137)/(D137*G137),IF(F137="M",($B$5*($D$5*I137-H137)*E137)/(D137*G137),IF(F137="H",($B$6*($D$6*I137-H137)*E137)/(D137*G137)))) -> 0.1271911947
A138: I24.2 Fe 3 | B138: ------ | C138: 230 | D138: 200 | E138: 5 | F138: H | G138: 1 | H138: 1.73 | I138: 0.907 | J138: 1.90738699 | K138: 0.531061325 | L138: 0.1319984011
A139: I24.2 Fe 4 | B139: ------ | C139: 231 | D139: 200 | E139: 5 | F139: H | G139: 1 | H139: 1.42 | I139: 0.747 | J139: 1.900937082 | K139: =IF(F139="L",($B$4*(H139-I139)*E139)/(D139*G139),IF(F139="M",($B$5*(H139-I139)*E139)/(D139*G139),IF(F139="H",($B$6*(H139-I139)*E139)/(D139*G139)))) -> 0.434270075 | L139: 0.111822114
A140: I24.2 Fe 5 | B140: ------ | C140: 232 | D140: 200 | E140: 5 | F140: H | G140: 1 | H140: 1.45 | I140: 0.765 | J140: 1.895424837 | K140: 0.442013375 | L140: 0.1172376619
A141: I24.2 Fe 6 | B141: ------ | C141: 233 | D141: 200 | E141: 5 | F141: H | G141: 1 | H141: 1.23 | I141: 0.644 | J141: 1.909937888 | K141: 0.37813115 | L141: 0.09266318694
A142: I24.2 Con 1 | B142: ------ | C142: 234 | D142: 200 | E142: 5 | F142: H | G142: 1 | H142: 1.76 | I142: 0.925 | J142: 1.902702703 | K142: 0.538804625 | L142: 0.137413949
A143: I24.2 Con 2 | B143: ------ | C143: 235 | D143: 200 | E143: 5 | F143: H | G143: 1 | H143: 1.59 | I143: 0.812 | J143: 1.958128079 | K143: 0.50202395 | L143: 0.09158630093
A144: I24.2 Con 3 | B144: ------ | C144: 236 | D144: 200 | E144: 5 | F144: H | G144: 1 | H144: 1.59 | I144: 0.831 | J144: 1.913357401 | K144: 0.489763725 | L144: 0.117736421
A145: 005 (ZOOP) | B145: ------ | C145: 237 | D145: 27 | E145: 5 | F145: H | G145: =0.25/5.25 -> 0.04761904762 | H145: 1.47 | I145: 0.757 | J145: 1.941875826 | K145: 71.56816722 | L145: 14.51669101
C146: 238 | L146: FALSE
C147: 239 | L147: FALSE | M147: Cap does not exist
C148: 240 | L148: FALSE | M148: Cap does not exist
C149: 241 | L149: FALSE | M149: Cap does not exist
A150: 6 | B150: 1 | C150: 242 | D150: 294.25 | E150: 5 | F150: H | G150: =0.25/5.25 -> 0.04761904762 | H150: 1.37 | I150: 0.699 | J150: =H150/I150 -> 1.959942775 | K150: 6.180166542 | L150: 1.113658766 | M150: Cap does not exist
A151: 6 | B151: 10 | C151: 243 | D151: 294.25 | E151: 5 | F151: H | G151: 0.04761904762 | H151: 3.12 | I151: 1.65 | J151: 1.890909091 | K151: 13.53926202 | L151: 3.677922181
A152: 6 | B152: 20 | C152: 244 | D152: 294.25 | E152: 5 | F152: H | G152: 0.04761904762 | H152: 3.88 | I152: 2.08 | J152: 1.865384615 | K152: 16.57868819 | L152: 5.125398563
A153: 6 | B153: 25 | C153: 245 | D153: 294.25 | E153: 5 | F153: H | G153: 0.04761904762 | H153: 2.33 | I153: 1.29 | J153: 1.80620155 | K153: 9.578797621 | L153: 3.881910029
A154: 6 | B154: 30 | C154: 246 | D154: 294.25 | E154: 5 | F154: H | G154: 0.04761904762 | H154: 2.76 | I154: 1.49 | J154: 1.852348993 | K154: 11.69718556 | L154: 3.850453512
A155: 6 | B155: 40 | C155: 247 | D155: 294.25 | E155: 5 | F155: H | G155: 0.04761904762 | H155: 1.72 | I155: 1.01 | J155: 1.702970297 | K155: 6.539371453 | L155: 3.999632211
A156: 6 | B156: 50 | C156: 248 | D156: 294.25 | E156: 5 | F156: H | G156: 0.04761904762 | H156: 1.36 | I156: 0.777 | J156: 1.75032175 | K156: 5.369652897 | L156: 2.738075664
A157: 6 | B157: 60 | C157: 249 | D157: 294.25 | E157: 5 | F157: H | G157: 0.04761904762 | H157: 1.19 | I157: 0.705 | J157: 1.687943262 | K157: 4.467035429 | L157: 2.889397822
A158: 6 | B158: 70 | C158: 250 | D158: 294.25 | E158: 5 | F158: H | G158: 0.04761904762 | H158: 1.2 | I158: 0.685 | J158: 1.751824818 | K158: 4.743346899 | L158: 2.40439321
A159: 6 | B159: 80 | C159: 251 | D159: 294.25 | E159: 5 | F159: H | G159: 0.04761904762 | H159: 0.764 | I159: 0.464 | J159: 1.646551724 | K159: 2.763114698 | L159: 2.078566193
A160: 6 | B160: 100 | C160: 252 | D160: 294.25 | E160: 5 | F160: H | G160: 1 | H160: 7.7 | I160: 5.02 | J160: 1.533864542 | K160: 1.175420221 | L160: 1.318959713
A161: 6 | B161: 150 | C161: 253 | D161: 294.25 | E161: 5 | F161: H | G161: 1 | H161: 1.94 | I161: 1.29 | J161: 1.503875969 | K161: 0.2850832625 | L161: 0.355902816
C162: 254 | L162: FALSE
C163: 255 | L163: FALSE | M163: Cap does not exist
C164: 256 | L164: FALSE | M164: Cap does not exist
A165: IN 24.5 To | B165: ------ | C165: 257 | D165: 200 | E165: 5 | F165: H | G165: =0.1/1.1 -> 0.09090909091 | H165: 3.49 | I165: 1.85 | J165: 1.886486486 | K165: 11.640761 | L165: 3.236047629 | M165: Cap does not exist
A166: ZOOP6 | B166: ZOOP | C166: 258 | D166: 12 | E166: 5 | F166: H | G166: =0.25/5.25 -> 0.04761904762 | H166: 2.85 | I166: 2.48 | J166: 1.149193548 | K166: 83.5631125 | L166: 550.9857764
A167: IE5.1 Fe 1 | B167: ------ | C167: 259 | D167: 200 | E167: 5 | F167: H | G167: 0.04761904762 | H167: 0.996 | I167: 0.493 | J167: 2.020283976 | K167: 6.816039825 | L167: 0.7524908743
A168: IE5.1 Fe 2 | B168: ------ | C168: 260 | D168: 200 | E168: 5 | F168: H | G168: 0.04761904762 | H168: 1.02 | I168: 0.513 | J168: 1.988304094 | K168: 6.870242925 | L168: 1.005327559
A169: IE5.1 Fe 3 | B169: ------ | C169: 261 | D169: 200 | E169: 5 | F169: H | G169: 0.04761904762 | H169: 0.725 | I169: 0.372 | J169: 1.948924731 | K169: 4.783423575 | L169: 0.9275164253
A170: IE5.1 Fe 4 | B170: ------ | C170: 262 | D170: 200 | E170: 5 | F170: H | G170: 0.04761904762 | H170: 1 | I170: 0.5 | J170: 2 | K170: 6.7753875 | L170: 0.9006071241
A171: IE5.1 Fe 5 | B171: ------ | C171: 263 | D171: 200 | E171: 5 | F171: H | G171: 0.04761904762 | H171: 0.795 | I171: 0.415 | J171: 1.915662651 | K171: 5.1492945 | L171: 1.221781038
A172: IE5.1 Con 1 | B172: ------ | C172: 264 | D172: 200 | E172: 5 | F172: H | G172: 0.04761904762 | H172: 1.13 | I172: 0.565 | J172: 2 | K172: 7.656187875 | L172: 1.01768605
A173: IE5.1 Con 2 | B173: ------ | C173: 265 | D173: 200 | E173: 5 | F173: H | G173: 0.04761904762 | H173: 0.875 | I173: 0.445 | J173: 1.966292135 | K173: 5.82683325 | L173: 1.004801965
A174: IE5.1 Con 3 | B174: ------ | C174: 266 | D174: 200 | E174: 5 | F174: H | G174: 0.04761904762 | H174: 0.873 | I174: 0.438 | J174: 1.993150685 | K174: 5.894587125 | L174: 0.8295841657
A175: IE5.1 Con 4 | B175: ------ | C175: 267 | D175: 200 | E175: 5 | F175: H | G175: 0.04761904762 | H175: 0.813 | I175: 0.42 | J175: 1.935714286 | K175: 5.325454575 | L175: 1.122380909
A176: IE5.1 Con 5 | B176: ------ | C176: 268 | D176: 200 | E176: 5 | F176: H | G176: 0.04761904762 | H176: 0.968 | I176: 0.487 | J176: 1.987679671 | K176: 6.517922775 | L176: 0.9584959889
A177: IE5.1 Fe 1 >5 | B177: ------ | C177: 269 | D177: 40 | E177: 5 | F177: H | G177: 1 | H177: 4.75 | I177: 2.43 | J177: 1.95473251 | K177: 7.48519 | L177: 1.397032351
A178: IE5.1 Fe 1 <5 | B178: ------ | C178: 270 | D178: 40 | E178: 5 | F178: H | G178: 1 | H178: 1.05 | I178: 0.538 | J178: 1.951672862 | K178: 1.651904 | L178: 0.314612718
A179: IE5.1 Fe 2 >5 | B179: ------ | C179: 271 | D179: 30 | E179: 5 | F179: H | G179: 1 | H179: 3.73 | I179: 1.88 | J179: 1.984042553 | K179: 7.958391667 | L179: 1.204065408
A180: IE5.1 Fe 2 <5 | B180: ------ | C180: 272 | D180: 40 | E180: 5 | F180: H | G180: 1 | H180: 0.784 | I180: 0.4 | J180: 1.96 | K180: 1.238928 | L180: 0.2231662141
A181: IE5.1 Con 1 >5 | B181: ------ | C181: 273 | D181: 30 | E181: 5 | F181: H | G181: 1 | H181: 4.11 | I181: 2.11 | J181: 1.947867299 | K181: 8.603666667 | L181: 1.679729306
A182: IE5.1 Con 1 <5 | B182: ------ | C182: 274 | D182: 30 | E182: 5 | F182: H | G182: 1 | H182: 0.763 | I182: 0.394 | J182: 1.936548223 | K182: 1.5873765 | L182: 0.3328405679
A183: IE5.1 Con 2 >5 | B183: ------ | C183: 275 | D183: 25 | E183: 5 | F183: H | G183: 1 | H183: 4.15 | I183: 2.16 | J183: 1.921296296 | K183: 10.272778 | L183: 2.35971601
A184: IE5.1 Con 2 <5 | B184: ------ | C184: 276 | D184: 50 | E184: 5 | F184: H | G184: 1 | H184: 0.971 | I184: 0.5 | J184: 1.942 | K184: 1.2156981 | L184: 0.2463961141
A185: IE24.3 Fe 1 | B185: ------ | C185: 277 | D185: 200 | E185: 5 | F185: H | G185: 1 | H185: 2.94 | I185: 1.51 | J185: 1.947019868 | K185: 0.92274325 | L185: 0.1811378817
A186: IE24.3 Fe 2 | B186: ------ | C186: 278 | D186: 200 | E186: 5 | F186: H | G186: 1 | H186: 2.91 | I186: 1.49 | J186: 1.953020134 | K186: 0.9162905 | L186: 0.1729696895
A187: IE24.3 Fe 3 | B187: ------ | C187: 279 | D187: 200 | E187: 5 | F187: H | G187: 1 | H187: 3.2 | I187: 1.67 | J187: 1.916167665 | K187: 0.98727075 | L187: 0.2335779188
A188: IE24.3 Fe 4 | B188: ------ | C188: 280 | D188: 200 | E188: 5 | F188: H | G188: 1 | H188: 3.29 | I188: 1.67 | J188: 1.97005988 | K188: 1.0453455 | L188: 0.1755031688
A189: IE24.3 Fe 5 | B189: ------ | C189: 281 | D189: 200 | E189: 5 | F189: H | G189: 1 | H189: 3.23 | I189: 1.67 | J189: 1.934131737 | K189: 1.006629 | L189: 0.2142196688
A190: IE24.3 Fe 6 | B190: ------ | C190: 282 | D190: 200 | E190: 5 | F190: H | G190: 1 | H190: 3.41 | I190: 1.76 | J190: 1.9375 | K190: 1.06470375 | L190: 0.2219391584
A191: IE24.3 Con 1 | B191: ------ | C191: 283 | D191: 200 | E191: 5 | F191: H | G191: 1 | H191: 3.31 | I191: 1.7 | J191: 1.947058824 | K191: 1.03889275 | L191: 0.203887332
A192: IE24.3 Con 2 | B192: ------ | C192: 284 | D192: 200 | E192: 5 | F192: H | G192: 1 | H192: 2.88 | I192: 1.48 | J192: 1.945945946 | K192: 0.903385 | L192: 0.1785647184
A193: IE24.3 Con 3 | B193: ------ | C193: 285 | D193: 200 | E193: 5 | F193: H | G193: 1 | H193: 2.71 | I193: 1.41 | J193: 1.921985816 | K193: 0.8388575 | L193: 0.1919189209
A194: AFM Dil. 2 24 hr | B194: ------ | C194: 286 | D194: 287 | E194: 5 | F194: H | G194: =0.25/5.25 -> 0.04761904762 | H194: 1.2 | I194: 0.612 | J194: 1.960784314 | K194: 5.552512683 | L194: 0.9948165295
A195: AFM Dil. 2 24 hr | B195: ------ | C195: 287 | D195: 287 | E195: 5 | F195: H | G195: 0.04761904762 | H195: 1.14 | I195: 0.597 | J195: 1.909547739 | K195: 5.127575488 | L195: 1.259279969
A196: AFM Dil. 2 24 hr | B196: ------ | C196: 288 | D196: 287 | E196: 5 | F196: H | G196: 0.04761904762 | H196: 1.19 | I196: 0.604 | J196: 1.970198675 | K196: 5.533626585 | L196: 0.9281166243
A197: AFM Dil. 2 24 hr | B197: ------ | C197: 289 | D197: 287 | E197: 5 | F197: H | G197: 0.04761904762 | H197: 0.808 | I197: 0.417 | J197: 1.93764988 | K197: 3.692232073 | L197: 0.7689383216
A198: AFM Dil. 2 24 hr | B198: ------ | C198: 290 | D198: 287 | E198: 5 | F198: H | G198: 0.04761904762 | H198: 0.801 | I198: 0.406 | J198: 1.972906404 | K198: 3.730004268 | L198: 0.6134853727
A199: AFM Dil. 2 24 hr | B199: ------ | C199: 291 | D199: 287 | E199: 5 | F199: H | G199: 0.04761904762 | H199: 1.13 | I199: 0.58 | J199: 1.948275862 | K199: 5.193676829 | L199: 1.011308372
A200: AFM Dil. 2 24 hr | B200: ------ | C200: 292 | D200: 287 | E200: 5 | F200: H | G200: 0.04761904762 | H200: 1.09 | I200: 0.509 | J200: 2.141453831 | K200: 5.486411341 | L200: -0.04100191476
A201: AFM Dil. 2 24 hr | B201: ------ | C201: 293 | D201: 287 | E201: 5 | F201: H | G201: 0.04761904762 | H201: 1.31 | I201: 0.661 | J201: 1.981845688 | K201: 6.128538659 | L201: =IF(F201="L",($B$4*($D$4*(I201-H201))*E201)/(D201*G201),IF(F201="M",($B$5*($D$5*I201-H201)*E201)/(D201*G201),IF(F201="H",($B$6*($D$6*I201-H201)*E201)/(D201*G201)))) -> 0.9430048209
... 2097 more rows
